[Event "MCR rapid mládeže 2023 U16"]
[Site "Harachov, Czech Republic"]
[Date "2023.09.10"]
[Round "8.34"]
[White "Kozusnik, Jan"]
[Black "Bartak, Tobias"]
[Result "0-1"]
[TimeControl "20min+5s/move"]
[WhiteElo "1399"]
[BlackElo "1259"]

1. e4 {[%clk 00:20:09]} c5 {[%clk 00:20:09]} {[%emt 00:00:02]} 2. Nf3 {[%clk
00:20:12]} {[%emt 00:00:01]} Nc6 {[%clk 00:20:13]} {[%emt 00:00:02]} 3. d4
{[%clk 00:20:16]} {[%emt 00:00:01]} cxd4 {[%clk 00:20:16]} {[%emt 00:00:02]} 4.
Nxd4 {[%clk 00:20:20]} g6 {[%clk 00:20:19]} {[%emt 00:00:03]} 5. Nc3 {[%clk
00:20:20]} {[%emt 00:00:04]} Bg7 {[%clk 00:20:17]} {[%emt 00:00:07]} 6. Be3
{[%clk 00:20:21]} {[%emt 00:00:04]} Nf6 {[%clk 00:20:13]} {[%emt 00:00:09]} 7.
Qd2 {[%clk 00:20:10]} {[%emt 00:00:16]} O-O {[%clk 00:19:56]} {[%emt 00:00:23]}
8. O-O-O {[%clk 00:19:47]} {[%emt 00:00:27]} a6 {[%clk 00:19:34]} {[%emt
00:00:28]} 9. Nxc6 {[%clk 00:19:39]} {[%emt 00:00:13]} bxc6 {[%clk 00:19:35]}
{[%emt 00:00:04]} 10. Bh6 {[%clk 00:19:41]} {[%emt 00:00:02]} Bxh6 {[%emt
00:00:06]} 11. Qxh6 {[%emt 00:00:06]} Rb8 {[%clk 00:19:35]} {[%emt 00:00:04]}
12. h4 {[%clk 00:19:30]} {[%emt 00:00:15]} Qb6 {[%clk 00:19:35]} {[%emt
00:00:05]} 13. b3 {[%clk 00:19:07]} {[%emt 00:00:28]} Qb4 {[%clk 00:19:11]}
{[%emt 00:00:28]} 14. Kb2 {[%clk 00:18:54]} {[%emt 00:00:18]} Ng4 {[%clk
00:18:39]} {[%emt 00:00:38]} 15. Qf4 {[%clk 00:17:28]} {[%emt 00:01:30]} Nf6
{[%clk 00:17:29]} {[%emt 00:01:15]} 16. g4 {[%clk 00:16:29]} {[%emt 00:01:04]}
d5 {[%clk 00:16:22]} {[%emt 00:01:14]} 17. a3 {[%clk 00:15:16]} {[%emt
00:01:17]} Qb7 {[%clk 00:14:15]} {[%emt 00:02:12]} 18. f3 {[%clk 00:14:51]}
{[%emt 00:00:30]} dxe4 {[%clk 00:13:17]} {[%emt 00:01:02]} 19. Nxe4 {[%clk
00:14:39]} {[%emt 00:00:17]} Nxe4 {[%clk 00:13:11]} {[%emt 00:00:12]} 20. fxe4
{[%clk 00:14:25]} {[%emt 00:00:20]} e5 {[%clk 00:12:12]} {[%emt 00:01:03]} 21.
Qg3 {[%clk 00:13:48]} {[%emt 00:00:42]} c5 {[%clk 00:11:50]} {[%emt 00:00:28]}
22. Rd5 {[%clk 00:12:48]} {[%emt 00:01:02]} c4 {[%clk 00:11:17]} {[%emt
00:00:41]} 23. Bxc4 {[%clk 00:11:59]} {[%emt 00:00:53]} Be6 {[%clk 00:11:19]}
{[%emt 00:00:03]} 24. Rc5 {[%clk 00:11:42]} {[%emt 00:00:22]} Qxe4 {[%clk
00:11:09]} {[%emt 00:00:16]} 25. Bxe6 {[%clk 00:10:18]} {[%emt 00:01:27]} Qxh1
{[%clk 00:09:59]} {[%emt 00:01:16]} 26. Bd5 {[%clk 00:09:29]} {[%emt 00:00:54]}
e4 {[%clk 00:09:11]} {[%emt 00:00:53]} 27. Rc4 {[%clk 00:08:11]} {[%emt
00:01:22]} Rfe8 {[%clk 00:07:55]} {[%emt 00:01:23]} 28. Bxe4 {[%clk 00:07:33]}
{[%emt 00:00:42]} Qf1 {[%clk 00:07:13]} {[%emt 00:00:47]} 29. Qc3 {[%clk
00:05:37]} {[%emt 00:02:02]} Qe2 {[%clk 00:06:04]} {[%emt 00:01:13]} 30. Bd3
{[%clk 00:00:28]} {[%emt 00:05:14]} Qe5 {[%clk 00:05:54]} {[%emt 00:00:15]} 31.
Qxe5 {[%clk 00:00:24]} {[%emt 00:00:09]} Rxe5 {[%clk 00:05:58]} {[%emt
00:00:02]} 32. Rc6 {[%clk 00:00:28]} a5 {[%clk 00:05:51]} {[%emt 00:00:12]} 33.
c4 {[%clk 00:00:13]} {[%emt 00:00:20]} Re3 {[%clk 00:05:37]} {[%emt 00:00:18]}
34. Rd6 {[%clk 00:00:11]} {[%emt 00:00:08]} Rg3 {[%clk 00:05:23]} {[%emt
00:00:18]} 35. Rd4 {[%clk 00:00:09]} {[%emt 00:00:07]} Rh3 {[%clk 00:05:13]}
{[%emt 00:00:15]} 36. g5 {[%clk 00:00:11]} {[%emt 00:00:03]} Re8 {[%clk
00:05:11]} {[%emt 00:00:07]} 37. Kc3 {[%clk 00:00:10]} {[%emt 00:00:05]} Re1
{[%clk 00:04:57]} {[%emt 00:00:20]} 38. c5 {[%clk 00:00:12]} {[%emt 00:00:03]}
Rc1+ {[%clk 00:04:57]} {[%emt 00:00:06]} 39. Kd2 {[%clk 00:00:07]} {[%emt
00:00:10]} Rxc5 {[%clk 00:04:57]} {[%emt 00:00:05]} 40. Rd8+ {[%clk 00:00:07]}
{[%emt 00:00:04]} Kg7 {[%clk 00:04:58]} {[%emt 00:00:04]} 41. Rd4 {[%clk
00:00:08]} {[%emt 00:00:04]} Rh2+ {[%clk 00:04:55]} {[%emt 00:00:08]} 42. Ke3
{[%clk 00:00:08]} {[%emt 00:00:05]} Rc3 {[%clk 00:04:44]} {[%emt 00:00:16]} 43.
b4 {[%clk 00:00:07]} {[%emt 00:00:06]} Rxa3 {[%clk 00:04:39]} {[%emt 00:00:10]}
44. bxa5 {[%clk 00:00:07]} {[%emt 00:00:06]} Rxa5 {[%clk 00:04:40]} {[%emt
00:00:04]} 45. Be4 {[%clk 00:00:07]} {[%emt 00:00:05]} Rxh4 {[%clk 00:04:27]}
{[%emt 00:00:17]} 46. Rd3 {[%emt 00:00:08]} Rh3+ {[%clk 00:04:27]} {[%emt
00:00:03]} 47. Bf3 {[%clk 00:00:07]} {[%emt 00:00:04]} Rf5 {[%clk 00:04:29]}
{[%emt 00:00:02]} 48. Ke4 {[%clk 00:00:07]} {[%emt 00:00:07]} Rfxf3 {[%clk
00:04:33]} {[%emt 00:00:01]} 49. Rxf3 {[%clk 00:00:11]} Rxf3 {[%clk 00:04:36]}
{[%emt 00:00:01]} 50. Kxf3 {[%clk 00:00:15]} f6 {[%clk 00:04:38]} {[%emt
00:00:04]} 51. gxf6+ {[%clk 00:00:15]} {[%emt 00:00:06]} Kxf6 {[%clk 00:04:42]}
{[%emt 00:00:01]} 52. Kg4 {[%clk 00:00:19]} {[%emt 00:00:01]} h5+ {[%clk
00:04:44]} {[%emt 00:00:02]} 53. Kh4 {[%clk 00:00:23]} {[%emt 00:00:02]} Kf5
{[%clk 00:04:47]} {[%emt 00:00:02]} 54. Kg3 {[%clk 00:00:26]} {[%emt 00:00:01]}
Kg5 {[%clk 00:04:44]} {[%emt 00:00:08]} 55. Kh3 {[%clk 00:00:21]} {[%emt
00:00:10]} Kf4 {[%clk 00:04:46]} {[%emt 00:00:02]} 56. Kh4 {[%clk 00:00:17]}
{[%emt 00:00:09]} g5 {[%clk 00:04:49]} {[%emt 00:00:02]} 57. Kxh5 {[%clk
00:00:18]} {[%emt 00:00:05]} g4 {[%clk 00:04:54]} 58. Kh4 {[%clk 00:00:21]}
{[%emt 00:00:02]} Kf3 {[%clk 00:04:55]} {[%emt 00:00:04]} 0-1

[Event "MCR rapid mládeže 2023 U16"]
[Site "Harachov, Czech Republic"]
[Date "2023.09.10"]
[Round "8.35"]
[White "Bukovskij, Dmitri"]
[Black "Vorlik, Jachym"]
[Result "0-1"]
[TimeControl "20min+5s/move"]
[WhiteElo "1291"]
[BlackElo "1210"]

1. d4 {[%clk 00:20:07]} {[%emt 00:00:03]} Nf6 {[%clk 00:20:06]} {[%emt
00:00:04]} 2. Nc3 {[%clk 00:20:09]} {[%emt 00:00:03]} d5 {[%clk 00:19:45]}
{[%emt 00:00:26]} 3. Bf4 {[%clk 00:20:11]} {[%emt 00:00:03]} Bf5 {[%clk
00:19:45]} {[%emt 00:00:06]} 4. Nf3 {[%clk 00:20:07]} {[%emt 00:00:08]} e6
{[%clk 00:19:47]} {[%emt 00:00:02]} 5. e3 {[%clk 00:20:07]} {[%emt 00:00:05]}
Bb4 {[%clk 00:19:50]} {[%emt 00:00:02]} 6. a3 {[%emt 00:00:07]} Ba5 {[%emt
00:00:11]} 7. b4 {[%emt 00:00:04]} Bb6 {[%clk 00:19:49]} {[%emt 00:00:06]} 8.
Be2 {[%clk 00:19:53]} {[%emt 00:00:02]} O-O {[%clk 00:19:47]} {[%emt 00:00:07]}
9. O-O {[%clk 00:19:56]} {[%emt 00:00:02]} c6 {[%clk 00:19:49]} {[%emt
00:00:03]} 10. b5 {[%clk 00:19:43]} {[%emt 00:00:18]} Bc7 {[%clk 00:19:33]}
{[%emt 00:00:21]} 11. bxc6 {[%emt 00:00:07]} Nxc6 {[%clk 00:19:32]} {[%emt
00:00:04]} 12. Rb1 {[%clk 00:19:44]} {[%emt 00:00:04]} Rb8 {[%clk 00:18:51]}
{[%emt 00:00:46]} 13. Bg3 {[%clk 00:19:41]} {[%emt 00:00:08]} Bxg3 {[%clk
00:17:46]} {[%emt 00:01:10]} 14. fxg3 {[%clk 00:19:43]} {[%emt 00:00:02]} Qa5
{[%clk 00:17:15]} {[%emt 00:00:36]} 15. Rb3 {[%clk 00:19:04]} {[%emt 00:00:44]}
Ne4 {[%clk 00:16:47]} {[%emt 00:00:34]} 16. Nxe4 {[%clk 00:18:52]} {[%emt
00:00:17]} Bxe4 {[%clk 00:16:44]} {[%emt 00:00:08]} 17. Bd3 {[%clk 00:18:39]}
{[%emt 00:00:18]} Bxd3 {[%clk 00:16:33]} {[%emt 00:00:16]} 18. Qxd3 {[%clk
00:18:38]} {[%emt 00:00:05]} Qc7 {[%clk 00:15:46]} {[%emt 00:00:52]} 19. Ng5
{[%clk 00:17:33]} {[%emt 00:01:09]} g6 {[%clk 00:15:31]} {[%emt 00:00:22]} 20.
e4 {[%clk 00:17:23]} {[%emt 00:00:15]} dxe4 {[%clk 00:14:48]} {[%emt 00:00:48]}
21. Nxe4 {[%clk 00:17:24]} {[%emt 00:00:03]} Rfd8 {[%clk 00:14:19]} {[%emt
00:00:35]} 22. Nf6+ {[%clk 00:17:07]} {[%emt 00:00:22]} Kg7 {[%clk 00:14:13]}
{[%emt 00:00:11]} 23. c3 {[%clk 00:16:10]} {[%emt 00:01:00]} Rbc8 {[%clk
00:13:41]} {[%emt 00:00:38]} 24. Rb2 {[%clk 00:10:48]} Ne7 {[%clk 00:13:14]}
{[%emt 00:06:00]} 25. Qf3 {[%clk 00:09:37]} Nc6 {[%clk 00:10:48]} {[%emt
00:03:47]} 26. Qf4 {[%clk 00:07:35]} Qxf4 {[%clk 00:10:28]} {[%emt 00:02:33]}
27. Rxf4 {[%clk 00:07:30]} Na5 {[%clk 00:10:08]} {[%emt 00:00:36]} 28. Rf3
{[%clk 00:07:20]} b6 {[%clk 00:09:41]} {[%emt 00:00:46]} 29. Ne4 {[%clk
00:06:41]} Nc4 {[%clk 00:09:23]} {[%emt 00:01:07]} 30. Rbf2 {[%clk 00:05:20]}
Rc7 {[%clk 00:08:42]} {[%emt 00:02:11]} 31. Ng5 {[%emt 00:01:31]} Rdd7 32. a4
{[%clk 00:04:06]} h6 {[%clk 00:08:30]} {[%emt 00:00:16]} 33. Rxf7+ {[%clk
00:03:47]} {[%emt 00:00:24]} Rxf7 {[%emt 00:00:27]} 34. Nxe6+ {[%clk 00:03:48]}
{[%emt 00:00:03]} Kg8 {[%clk 00:08:04]} {[%emt 00:00:10]} 35. Nxc7 {[%clk
00:03:37]} {[%emt 00:00:16]} Rxc7 {[%clk 00:08:08]} {[%emt 00:00:01]} 36. Kf1
{[%clk 00:03:19]} {[%emt 00:00:21]} Ne3+ {[%clk 00:07:58]} {[%emt 00:00:15]} 37.
Ke2 {[%clk 00:03:20]} {[%emt 00:00:03]} Nd5 {[%clk 00:07:36]} {[%emt 00:00:29]}
38. Kd3 {[%clk 00:02:48]} {[%emt 00:00:37]} Nxc3 {[%clk 00:07:23]} {[%emt
00:00:19]} 39. Rc2 {[%clk 00:02:42]} {[%emt 00:00:11]} Nd5 {[%clk 00:07:19]}
{[%emt 00:00:09]} 40. Rxc7 {[%clk 00:02:39]} {[%emt 00:00:08]} Nxc7 {[%clk
00:07:22]} {[%emt 00:00:01]} 41. Kc4 {[%clk 00:02:38]} {[%emt 00:00:05]} Kf7
{[%clk 00:07:20]} {[%emt 00:00:07]} 42. d5 {[%clk 00:02:37]} {[%emt 00:00:06]}
Ke7 {[%clk 00:07:23]} {[%emt 00:00:02]} 43. Kb4 {[%clk 00:02:11]} {[%emt
00:00:32]} Nxd5+ {[%clk 00:07:01]} {[%emt 00:00:28]} 44. Kb5 {[%clk 00:02:11]}
{[%emt 00:00:05]} Nc3+ {[%clk 00:07:04]} {[%emt 00:00:01]} 45. Kb4 {[%clk
00:02:14]} {[%emt 00:00:02]} Nxa4 {[%clk 00:07:03]} {[%emt 00:00:07]} 46. Kxa4
{[%clk 00:02:17]} {[%emt 00:00:01]} Ke6 {[%clk 00:07:06]} {[%emt 00:00:02]} 47.
Kb5 {[%clk 00:02:19]} {[%emt 00:00:03]} Ke5 {[%clk 00:07:09]} {[%emt 00:00:02]}
48. Ka6 {[%clk 00:02:23]} Ke4 {[%clk 00:07:13]} {[%emt 00:00:01]} 49. h4 {[%clk
00:02:20]} {[%emt 00:00:09]} Ke3 {[%clk 00:07:13]} {[%emt 00:00:06]} 50. g4
{[%clk 00:02:23]} {[%emt 00:00:01]} Kf2 {[%clk 00:07:15]} {[%emt 00:00:02]} 51.
h5 {[%clk 00:02:26]} {[%emt 00:00:02]} gxh5 {[%clk 00:07:15]} {[%emt 00:00:06]}
52. gxh5 {[%clk 00:02:30]} {[%emt 00:00:01]} Kxg2 {[%clk 00:07:18]} {[%emt
00:00:02]} 0-1

[Event "MCR rapid mládeže 2023 U16"]
[Site "Harachov, Czech Republic"]
[Date "2023.09.10"]
[Round "8.36"]
[White "Skoloud, Josef"]
[Black "Vydra, David"]
[Result "1/2-1/2"]
[TimeControl "20min+5s/move"]
[WhiteElo "1075"]
[BlackElo "1137"]

1. e4 {[%clk 00:20:05]} {[%emt 00:00:04]} c5 {[%clk 00:20:07]} {[%emt
00:00:04]} 2. Nf3 {[%clk 00:20:08]} {[%emt 00:00:02]} d6 {[%clk 00:20:08]}
{[%emt 00:00:03]} 3. c3 {[%clk 00:20:09]} {[%emt 00:00:05]} Nf6 {[%clk
00:20:04]} {[%emt 00:00:09]} 4. Be2 {[%clk 00:20:10]} {[%emt 00:00:03]} a6
{[%clk 00:19:51]} {[%emt 00:00:19]} 5. Qc2 {[%clk 00:20:07]} {[%emt 00:00:08]}
e6 {[%clk 00:19:49]} {[%emt 00:00:07]} 6. O-O {[%clk 00:20:00]} {[%emt
00:00:12]} Nbd7 {[%clk 00:19:47]} {[%emt 00:00:07]} 7. d4 {[%clk 00:19:56]}
{[%emt 00:00:09]} cxd4 {[%clk 00:19:35]} {[%emt 00:00:16]} 8. cxd4 {[%clk
00:19:47]} {[%emt 00:00:14]} b5 {[%clk 00:19:25]} {[%emt 00:00:16]} 9. a3
{[%clk 00:19:03]} {[%emt 00:00:49]} Bb7 {[%clk 00:18:52]} {[%emt 00:00:38]} 10.
Nc3 {[%clk 00:18:58]} {[%emt 00:00:10]} Rc8 {[%clk 00:18:33]} {[%emt 00:00:24]}
11. Bd3 {[%clk 00:18:38]} {[%emt 00:00:26]} Be7 {[%clk 00:18:14]} {[%emt
00:00:23]} 12. Qe2 {[%clk 00:17:59]} {[%emt 00:00:44]} O-O {[%clk 00:17:44]}
{[%emt 00:00:35]} 13. Ng5 {[%clk 00:16:59]} {[%emt 00:01:05]} h6 {[%clk
00:17:01]} {[%emt 00:00:47]} 14. Nf3 {[%clk 00:16:58]} {[%emt 00:00:06]} Qa5
{[%clk 00:16:11]} {[%emt 00:00:55]} 15. Bd2 {[%clk 00:16:38]} {[%emt 00:00:26]}
b4 {[%clk 00:15:24]} {[%emt 00:00:51]} 16. axb4 {[%clk 00:16:33]} {[%emt
00:00:11]} Qb6 {[%clk 00:14:17]} {[%emt 00:01:12]} 17. e5 {[%clk 00:14:10]}
{[%emt 00:02:29]} Bxf3 {[%clk 00:13:51]} {[%emt 00:00:30]} 18. Qxf3 {[%clk
00:14:08]} {[%emt 00:00:06]} dxe5 {[%clk 00:13:53]} {[%emt 00:00:04]} 19. Bxa6
{[%clk 00:13:44]} {[%emt 00:00:29]} Ra8 {[%clk 00:13:24]} {[%emt 00:00:33]} 20.
dxe5 {[%clk 00:13:06]} {[%emt 00:00:44]} Nxe5 {[%clk 00:13:08]} {[%emt
00:00:21]} 21. Qe2 {[%clk 00:12:39]} {[%emt 00:00:33]} Ned7 {[%clk 00:12:37]}
{[%emt 00:00:35]} 22. Bb5 {[%clk 00:11:09]} {[%emt 00:01:34]} Bxb4 {[%clk
00:11:45]} {[%emt 00:00:58]} 23. Bxd7 {[%clk 00:10:30]} {[%emt 00:00:44]} Nxd7
{[%clk 00:11:32]} {[%emt 00:00:18]} 24. Rfd1 {[%clk 00:09:48]} {[%emt
00:00:47]} Rxa1 {[%clk 00:11:08]} {[%emt 00:00:29]} 25. Rxa1 {[%clk 00:09:46]}
{[%emt 00:00:07]} Bc5 {[%clk 00:11:06]} {[%emt 00:00:07]} 26. Rb1 {[%clk
00:09:15]} {[%emt 00:00:37]} Rd8 {[%clk 00:10:30]} {[%emt 00:00:40]} 27. Na4
{[%clk 00:08:47]} {[%emt 00:00:34]} Qb3 {[%clk 00:09:58]} {[%emt 00:00:36]} 28.
Nxc5 {[%clk 00:08:35]} {[%emt 00:00:16]} Nxc5 {[%clk 00:09:59]} {[%emt
00:00:04]} 29. Qd1 {[%clk 00:08:00]} {[%emt 00:00:41]} Qxd1+ {[%clk 00:09:56]}
{[%emt 00:00:08]} 30. Rxd1 {[%clk 00:08:03]} {[%emt 00:00:02]} Nb3 {[%clk
00:09:53]} {[%emt 00:00:08]} 31. Kf1 {[%clk 00:07:53]} {[%emt 00:00:14]} Rxd2
{[%clk 00:09:55]} {[%emt 00:00:03]} 32. Rb1 {[%clk 00:07:52]} {[%emt 00:00:07]}
Rc2 {[%clk 00:09:26]} {[%emt 00:00:34]} 33. Ke1 {[%clk 00:07:50]} {[%emt
00:00:07]} Kf8 {[%clk 00:09:23]} {[%emt 00:00:08]} 34. g3 {[%clk 00:07:47]}
{[%emt 00:00:08]} Ke7 {[%clk 00:09:19]} {[%emt 00:00:09]} 35. h4 {[%clk
00:07:49]} {[%emt 00:00:03]} Kf6 {[%clk 00:09:21]} {[%emt 00:00:03]} 36. f3
{[%clk 00:07:51]} {[%emt 00:00:03]} Rc1+ {[%clk 00:09:23]} {[%emt 00:00:03]} 37.
Rxc1 {[%clk 00:07:52]} {[%emt 00:00:04]} Nxc1 {[%clk 00:09:27]} {[%emt
00:00:01]} 38. Kd1 {[%clk 00:07:50]} {[%emt 00:00:07]} Nb3 {[%clk 00:09:30]}
{[%emt 00:00:01]} 39. Kc2 {[%clk 00:07:54]} {[%emt 00:00:02]} Nd4+ {[%clk
00:09:30]} {[%emt 00:00:05]} 40. Kc3 {[%clk 00:07:58]} {[%emt 00:00:01]} Nb5+
{[%clk 00:09:31]} {[%emt 00:00:05]} 41. Kc4 {[%clk 00:07:58]} {[%emt 00:00:04]}
Nd6+ {[%clk 00:09:13]} {[%emt 00:00:23]} 42. Kc5 {[%clk 00:08:03]} Ke7 {[%clk
00:09:04]} {[%emt 00:00:15]} 43. b4 {[%clk 00:08:04]} {[%emt 00:00:03]} g5
{[%clk 00:08:30]} {[%emt 00:00:38]} 44. hxg5 {[%clk 00:07:53]} {[%emt
00:00:17]} hxg5 {[%clk 00:08:34]} {[%emt 00:00:01]} 45. Kd4 {[%clk 00:07:50]}
{[%emt 00:00:08]} Kf6 {[%clk 00:08:32]} {[%emt 00:00:07]} 46. Kc5 {[%clk
00:07:54]} {[%emt 00:00:01]} Ke7 {[%clk 00:08:31]} {[%emt 00:00:06]} 47. Kd4
{[%clk 00:07:57]} {[%emt 00:00:01]} f6 {[%clk 00:08:35]} {[%emt 00:00:01]} 48.
Kc5 {[%clk 00:07:58]} {[%emt 00:00:05]} Kd7 {[%clk 00:08:33]} {[%emt 00:00:07]}
49. b5 {[%clk 00:07:50]} {[%emt 00:00:12]} Nxb5 {[%clk 00:08:32]} {[%emt
00:00:05]} 50. Kxb5 {[%clk 00:07:54]} {[%emt 00:00:02]} Kd6 {[%clk 00:08:37]}
51. Kc4 {[%clk 00:07:58]} {[%emt 00:00:01]} Ke5 {[%clk 00:08:39]} {[%emt
00:00:02]} 52. Kd3 {[%clk 00:08:02]} {[%emt 00:00:01]} f5 {[%clk 00:08:43]}
{[%emt 00:00:02]} 53. Ke3 {[%clk 00:08:00]} {[%emt 00:00:07]} f4+ {[%clk
00:08:46]} {[%emt 00:00:01]} 54. gxf4+ {[%clk 00:08:06]} {[%emt 00:00:52]}
gxf4+ {[%clk 00:09:49]} {[%emt 00:00:02]} 55. Kd3 {[%clk 00:08:02]} {[%emt
00:00:09]} Kf5 {[%clk 00:09:52]} {[%emt 00:00:02]} 56. Ke2 {[%clk 00:08:06]}
{[%emt 00:00:01]} e5 {[%clk 00:09:52]} {[%emt 00:00:05]} 57. Kd3 {[%clk
00:08:09]} {[%emt 00:00:02]} Kg5 {[%clk 00:09:29]} {[%emt 00:00:27]} 58. Ke4
{[%clk 00:08:13]} {[%emt 00:00:01]} Kf6 {[%clk 00:09:33]} {[%emt 00:00:02]} 59.
Kd3 {[%clk 00:08:15]} {[%emt 00:00:02]} Ke6 {[%clk 00:09:34]} {[%emt 00:00:04]}
60. Ke4 {[%clk 00:08:19]} {[%emt 00:00:01]} Kd6 {[%clk 00:09:38]} {[%emt
00:00:01]} 61. Kd3 {[%clk 00:08:20]} {[%emt 00:00:04]} Kd5 {[%clk 00:09:42]}
{[%emt 00:00:01]} 62. Ke2 {[%clk 00:08:24]} {[%emt 00:00:02]} e4 {[%clk
00:09:46]} {[%emt 00:00:01]} 63. fxe4+ {[%clk 00:08:26]} {[%emt 00:00:03]} Kxe4
{[%clk 00:09:49]} {[%emt 00:00:01]} 64. Kf2 {[%clk 00:08:31]} f3 {[%clk
00:09:19]} {[%emt 00:00:37]} 65. Kf1 {[%clk 00:08:29]} {[%emt 00:00:06]} Ke3
{[%clk 00:09:21]} {[%emt 00:00:03]} 66. Ke1 {[%clk 00:08:33]} {[%emt 00:00:01]}
f2+ {[%clk 00:09:22]} {[%emt 00:00:02]} 67. Kf1 {[%clk 00:08:37]} {[%emt
00:00:03]} Kf3 {[%emt 00:00:05]} 1/2-1/2

[Event "MCR rapid mládeže 2023 U16"]
[Site "Harachov, Czech Republic"]
[Date "2023.09.10"]
[Round "8.37"]
[White "Tykalova, Barbora"]
[Black "Najdkova, Laura"]
[Result "1-0"]
[TimeControl "20min+5s/move"]
[WhiteElo "1121"]
[BlackElo "1331"]

1. e4 {[%clk 00:20:08]} e5 {[%clk 00:20:09]} {[%emt 00:00:02]} 2. Nf3 {[%clk
00:20:12]} {[%emt 00:00:01]} Nc6 {[%clk 00:20:12]} {[%emt 00:00:03]} 3. d4
{[%clk 00:20:13]} {[%emt 00:00:03]} exd4 {[%clk 00:20:15]} {[%emt 00:00:02]} 4.
Bc4 {[%clk 00:20:17]} {[%emt 00:00:01]} Bc5 {[%clk 00:20:07]} {[%emt 00:00:12]}
5. c3 {[%clk 00:20:20]} {[%emt 00:00:03]} Nge7 {[%clk 00:19:33]} {[%emt
00:00:39]} 6. Ng5 {[%clk 00:20:21]} {[%emt 00:00:04]} O-O {[%clk 00:19:28]}
{[%emt 00:00:10]} 7. Qh5 {[%clk 00:20:13]} {[%emt 00:00:13]} h6 {[%clk
00:17:46]} {[%emt 00:01:47]} 8. Nxf7 {[%clk 00:20:05]} {[%emt 00:00:12]} Rxf7
{[%clk 00:15:57]} {[%emt 00:01:54]} 9. Qxf7+ {[%clk 00:19:50]} {[%emt
00:00:21]} Kh8 {[%clk 00:15:55]} {[%emt 00:00:07]} 10. cxd4 {[%clk 00:19:39]}
{[%emt 00:00:16]} Nxd4 {[%clk 00:15:10]} {[%emt 00:00:50]} 11. Bb3 {[%clk
00:19:13]} {[%emt 00:00:31]} Qg8 {[%clk 00:14:33]} {[%emt 00:00:41]} 12. Qxg8+
{[%clk 00:19:03]} {[%emt 00:00:15]} Nxg8 {[%clk 00:14:37]} {[%emt 00:00:02]} 13.
Nc3 {[%clk 00:19:01]} {[%emt 00:00:07]} d6 {[%clk 00:14:04]} {[%emt 00:00:38]}
14. Be3 {[%clk 00:19:02]} {[%emt 00:00:04]} Nxb3 {[%clk 00:13:42]} {[%emt
00:00:27]} 15. axb3 {[%clk 00:19:02]} {[%emt 00:00:04]} Bxe3 {[%clk 00:13:35]}
{[%emt 00:00:12]} 16. fxe3 {[%clk 00:19:06]} Be6 {[%clk 00:13:36]} {[%emt
00:00:06]} 17. Nb5 {[%clk 00:19:06]} {[%emt 00:00:05]} Bxb3 {[%clk 00:12:34]}
{[%emt 00:01:07]} 18. Nxc7 {[%clk 00:19:09]} {[%emt 00:00:02]} Rd8 {[%clk
00:11:53]} {[%emt 00:00:43]} 19. Rxa7 {[%clk 00:19:03]} {[%emt 00:00:14]} Rd7
{[%clk 00:11:34]} {[%emt 00:00:22]} 20. Rxb7 {[%clk 00:19:05]} {[%emt
00:00:05]} Be6 {[%clk 00:11:21]} {[%emt 00:00:11]} 21. O-O {[%clk 00:18:58]}
{[%emt 00:00:19]} Nf6 {[%clk 00:11:00]} {[%emt 00:00:26]} 22. Rb8+ {[%clk
00:19:01]} {[%emt 00:00:02]} Bg8 {[%clk 00:10:48]} {[%emt 00:00:17]} 23. Nd5
{[%clk 00:18:56]} {[%emt 00:00:10]} Nxd5 {[%clk 00:10:45]} {[%emt 00:00:08]} 24.
exd5 {[%clk 00:18:59]} {[%emt 00:00:03]} Re7 {[%clk 00:10:44]} {[%emt
00:00:04]} 25. Rff8 {[%clk 00:19:02]} {[%emt 00:00:04]} Kh7 {[%clk 00:10:26]}
{[%emt 00:00:22]} 26. Rxg8 {[%clk 00:19:04]} {[%emt 00:00:03]} Rxe3 {[%clk
00:10:29]} {[%emt 00:00:02]} 27. Kf2 {[%clk 00:19:08]} {[%emt 00:00:01]} Rd3
{[%clk 00:10:30]} {[%emt 00:00:04]} 28. Rgd8 {[%clk 00:19:09]} {[%emt
00:00:05]} Rxd5 {[%clk 00:10:32]} {[%emt 00:00:02]} 29. Rb6 {[%clk 00:19:11]}
{[%emt 00:00:02]} Rd2+ {[%clk 00:10:31]} {[%emt 00:00:07]} 30. Kf3 {[%clk
00:19:15]} {[%emt 00:00:01]} Rd3+ {[%clk 00:10:32]} {[%emt 00:00:04]} 31. Ke2
{[%clk 00:19:17]} {[%emt 00:00:02]} Rd5 {[%clk 00:10:27]} {[%emt 00:00:10]} 32.
Rdxd6 {[%clk 00:19:18]} {[%emt 00:00:05]} Re5+ {[%clk 00:10:29]} {[%emt
00:00:03]} 33. Kf2 {[%clk 00:19:21]} {[%emt 00:00:01]} Rf5+ {[%clk 00:10:30]}
{[%emt 00:00:05]} 34. Kg3 {[%clk 00:19:25]} {[%emt 00:00:01]} Rc5 {[%clk
00:10:19]} {[%emt 00:00:16]} 35. Kh3 {[%clk 00:19:23]} {[%emt 00:00:07]} Rh5+
{[%clk 00:10:15]} {[%emt 00:00:09]} 36. Kg4 {[%clk 00:19:19]} {[%emt 00:00:04]}
Rg5+ {[%clk 00:10:19]} {[%emt 00:00:07]} 37. Kf3 {[%clk 00:19:23]} {[%emt
00:00:01]} Rf5+ {[%clk 00:10:21]} {[%emt 00:00:01]} 38. Ke2 {[%clk 00:19:18]}
{[%emt 00:00:11]} Re5+ {[%clk 00:10:24]} {[%emt 00:00:02]} 39. Kd3 {[%clk
00:19:21]} {[%emt 00:00:03]} Rg5 {[%clk 00:10:21]} {[%emt 00:00:06]} 40. Rd7
{[%clk 00:19:16]} {[%emt 00:00:10]} Rxg2 {[%clk 00:10:20]} {[%emt 00:00:07]} 41.
Rbb7 {[%clk 00:19:19]} {[%emt 00:00:03]} Rg4 {[%clk 00:10:14]} {[%emt
00:00:09]} 42. b4 {[%clk 00:18:38]} {[%emt 00:00:47]} Rg2 {[%clk 00:09:58]}
{[%emt 00:00:20]} 43. b5 {[%clk 00:18:38]} {[%emt 00:00:06]} Rxh2 {[%clk
00:09:52]} {[%emt 00:00:11]} 44. Rxg7+ {[%clk 00:18:41]} {[%emt 00:00:02]} Kh8
{[%clk 00:09:54]} {[%emt 00:00:02]} 45. Rge7 {[%clk 00:18:38]} {[%emt
00:00:08]} Rh3+ {[%clk 00:09:49]} {[%emt 00:00:11]} 46. Kc4 {[%clk 00:18:42]}
{[%emt 00:00:02]} Rg3 {[%clk 00:09:51]} {[%emt 00:00:02]} 47. Re8+ {[%clk
00:18:40]} {[%emt 00:00:07]} Rg8 {[%clk 00:09:53]} {[%emt 00:00:02]} 48. Rxg8+
{[%clk 00:18:44]} {[%emt 00:00:02]} Kxg8 {[%clk 00:09:57]} {[%emt 00:00:01]} 49.
b6 {[%clk 00:18:48]} {[%emt 00:00:01]} Kf8 {[%clk 00:10:00]} {[%emt 00:00:02]}
50. Rf7+ {[%clk 00:18:50]} {[%emt 00:00:02]} Kxf7 {[%clk 00:10:03]} {[%emt
00:00:04]} 51. b7 {[%clk 00:18:54]} Ke7 {[%clk 00:09:59]} {[%emt 00:00:09]} 52.
b8=Q {[%clk 00:18:57]} {[%emt 00:00:03]} Kd8 {[%clk 00:09:54]} {[%emt
00:00:04]} 1-0